Cogmind - Beta 13 @@@ ROGUE MODE // 2024.04.28 @ 19:42:04 Player: Gabe+Kate4EVR Result: Destroyed by P-60 Hacker with Shock Rifle Performance ------------- Evolutions (3) 1500 Regions Visited (5) 1000 Robots Destroyed (45) 225 Value Destroyed (1041) 1041 Prototype IDs (0) 0 Alien Tech Used (0) 0 Bonus (17) 17 TOTAL SCORE: 3783 Bonus ------- High Alert Combat Kills 17 Cogmind --------- Core Integrity 0/700 Matter 88/300 Energy 100/100 System Corruption 4% Temperature Cool (0) Movement Core (50) Location -7/Factory Parts ------- > --- POWER (1) -------- (None) > --- PROPULSION (6) --- (None) > --- UTILITY (4) ------ Salvage Targeting Computer > --- WEAPON (2) ------- Mining Claw > --- INVENTORY (5) ---- Nuclear Core Light Nuclear Core Gauss Rifle Grenade Launcher Plasma Cutter Peak State ------------ > --- POWER ------------ Nuclear Core > --- PROPULSION ------- Carbon-fiber Leg Carbon-fiber Leg Carbon-fiber Leg Carbon-fiber Leg > --- UTILITY ---------- Improved Heat Sink Small Storage Unit > --- WEAPON ----------- Flak Cannon Flak Cannon > --- INVENTORY -------- Nuclear Core Nuclear Core Aluminum Leg Aluminum Leg Aluminum Leg Small Laser Grenade Launcher Grenade Launcher [Rating: 26] Favorites ----------- Power Nuclear Core Engine Ion Engine Power Core Nuclear Core Propulsion Carbon-fiber Leg Leg Carbon-fiber Leg Hover Unit Gravmag System Flight Unit Flight Unit Utility Small Storage Unit Device Improved Heat Sink Storage Small Storage Unit Processor Salvage Targeting Computer Weapon Flak Cannon Ballistic Gun Assault Rifle Ballistic Cannon Flak Cannon Launcher Grenade Launcher Slashing Weapon Mining Claw Build | -11 -10 -9 -9 -8 -7 ------- Run | Yrd Mat Mat Sto Mat Fac Slots Evolved 6 | . . 2 . 2 2 Power . | . . . . . . Propulsion 4 | . . 2 . . 2 Utility 2 | . . . . 2 . Weapon . | . . . . . . Parts Attached 43 | 5 8 11 4 1 14 Power 5 | 2 1 1 . . 1 Engine 2 | 2 . . . . . Core 3 | . 1 1 . . 1 Reactor . | . . . . . . Propulsion 20 | . 5 6 4 1 4 Treads . | . . . . . . Leg 12 | . 5 6 1 . . Wheel . | . . . . . . Hover 1 | . . . . . 1 Flight 7 | . . . 3 1 3 Utility 6 | 1 1 . . . 4 Device 3 | . 1 . . . 2 Storage 2 | 1 . . . . 1 Processor 1 | . . . . . 1 Hackware . | . . . . . . Protection . | . . . . . . Artifact . | . . . . . . Weapon 12 | 2 1 4 . . 5 Energy Gun . | . . . . . . Energy Cannon . | . . . . . . Ballistic Gun 4 | 2 1 1 . . . Ballistic Cannon 4 | . . 2 . . 2 Launcher 2 | . . 1 . . 1 Special Weapon . | . . . . . . Impact Weapon . | . . . . . . Slashing Weapon 2 | . . . . . 2 Piercing Weapon . | . . . . . . Special Melee Weapon . | . . . . . . Unidentified Prototypes . | . . . . . . Parts Lost 10 | . . . 1 1 8 Power 2 | . . . 1 . 1 Propulsion 4 | . . . . 1 3 Utility 2 | . . . . . 2 Weapon 2 | . . . . . 2 Highest Loss Streak 6 | . . . 1 1 6 To Critical Strikes . | . . . . . . Average Slot Usage (%) 75 | . 91 99 96 41 23 Engine 1 | . 4 . . . . Core 7 | . 9 11 10 . . Leg 26 | . 28 44 40 . . Flight 4 | . . . 1 32 7 Device 6 | . 6 11 10 . . Storage 10 | . 14 11 11 9 6 Ballistic Gun 8 | . 28 11 . . . Ballistic Cannon 8 | . . 10 20 . 2 Naked Turns . | . . . . . . Heaviest Build 25 | 14 15 25 25 5 16 Greatest Support 60 | 3 20 60 60 12 17 Greatest Overweight (x) 6 | 4 . . 6 1 3 Average Overweight (x) . | 3 . . . . . Largest Inventory Capacity 8 | 8 8 8 8 8 8 Average Capacity 7 | 7 8 8 8 8 7 Most Carried 8 | 4 8 8 8 8 8 Average Carried 6 | 2 5 7 7 7 6 Final Capacity 8 | 8 8 8 8 8 5 Final Carried 8 | 4 8 8 8 7 5 Class Distribution -------------------- 86% | Mutant 13% | Scavenger-Mutant Dominant Class ---------------- Mutant | -10/Materials Mutant | -9/Materials Mutant | -9/Storage Scavenger-Mutant | -8/Materials Mutant | -7/Factory Resources | -11 -10 -9 -9 -8 -7 ----------- Run | Yrd Mat Mat Sto Mat Fac Matter Collected 1100 | 246 168 161 259 . 266 Remotely . | . . . . . . Salvage Created 1217 | . 289 221 397 . 310 Parts 77 | . 14 24 28 . 11 Haulers Intercepted 1 | . . . 1 . . Recyclers Shooed 7 | . 1 1 . . 5 Parts Field Recycled . | . . . . . . Retrieved Matter . | . . . . . . Parts Self-Destructed . | . . . . . . Prevented . | . . . . . . Kills | -11 -10 -9 -9 -8 -7 ------- Run | Yrd Mat Mat Sto Mat Fac Combat Hostiles Destroyed 33 | . 6 10 12 . 5 Melee 2 | . . . . . 2 Guns 7 | . 6 1 . . . Cannons 21 | . . 6 12 . 3 AOE 3 | . . 3 . . . Classes Destroyed 9 | . 3 2 3 . 1 Worker 4 | . . . 4 . . Hauler 1 | . . . 1 . . Recycler 4 | . 1 1 . . 2 Mechanic 2 | . . . 1 . 1 Watcher 1 | . . 1 . . . Swarmer 16 | . 3 8 3 . 2 Grunt 10 | . 3 . 5 . 2 Sentry 6 | . . 2 4 . . Hunter 1 | . . . . . 1 Best Kill Streak 8 | . 3 7 8 . 2 Combat Bots Only 6 | . 3 6 5 . 2 Max Kills in Single Turn 4 | . 1 3 4 . 1 Gunslinging . | . . . . . . Exploded 3 | . . 3 . . . Melee 1 | . . . . . 1 Uniques/NPCs Destroyed . | . . . . . . Combat | -11 -10 -9 -9 -8 -7 -------- Run | Yrd Mat Mat Sto Mat Fac Hostile Shots Fired 253 | . 33 24 54 28 114 Missed 81 | . 8 7 22 18 26 Damage Taken 2489 | . 306 195 535 116 1337 Core 983 | . 50 64 79 85 705 Absorbed by Shields . | . . . . . . Core Remaining (%) 82 | 100 80 . 64 84 . Volleys Fired 89 | . 22 16 30 . 21 Largest 2 | . 2 2 2 . 1 Hottest 88 | . 40 88 88 . 44 Shots Fired 157 | . 44 32 60 . 21 Gun 48 | . 44 4 . . . Cannon 106 | . . 26 60 . 20 Launcher 3 | . . 2 . . 1 Special . | . . . . . . Kinetic 154 | . 44 30 60 . 20 Thermal . | . . . . . . Explosive 3 | . . 2 . . 1 Electromagnetic . | . . . . . . Robot Hit Streak 13 | . 9 13 9 . 6 Robot Miss Streak 7 | . 3 7 7 . 7 Penetration Max . | . . . . . . Secondary Targets . | . . . . . . Shots Hit Robots 130 | . 26 23 50 . 31 Core Hits 121 | . 12 27 53 1 28 Critical Kills . | . . . . . . Critical Parts Destroyed . | . . . . . . Critical Strikes . | . . . . . . Melee Attacks 14 | . . . . . 14 Impact . | . . . . . . Slashing 14 | . . . . . 14 Piercing . | . . . . . . Sneak Attacks . | . . . . . . Combat Hostiles . | . . . . . . Follow-up Attacks . | . . . . . . Damage Inflicted 2673 | . 327 538 1051 16 741 Guns 353 | . 327 26 . . . Cannons 1548 | . . 377 769 . 402 Explosions 513 | . . 135 270 . 108 Melee 210 | . . . . . 210 Ramming 49 | . . . 12 16 21 Kinetic 1901 | . 327 403 769 . 402 Thermal . | . . . . . . Explosive 513 | . . 135 270 . 108 Electromagnetic . | . . . . . . Impact . | . . . . . . Slashing 210 | . . . . . 210 Piercing . | . . . . . . Highest Corruption 4 | . . . 1 . 4 Average Corruption 1 | . . . 1 . 3 Corruption Purged . | . . . . . . Corruption Blocked . | . . . . . . Effects 6 | . . . 2 . 4 Message Errors 2 | . . . 1 . 1 Matter Fused 1 | . . . . . 1 Energy Discharges 1 | . . . . . 1 Parts Rejected 1 | . . . 1 . . Alerts 1 | . . . . . 1 Overload Shots . | . . . . . . Overflow Damage 4 | . . . . . 4 Projectiles 4 | . . . . . 4 Explosions . | . . . . . . Melee . | . . . . . . Knockbacks 48 | . . 7 14 . 27 Impact . | . . . . . . Kinetic 41 | . . 7 14 . 20 Secondary 7 | . . . . . 7 Self-Inflicted Damage 202 | . . 40 114 7 41 Shots 4 | . . 1 2 . 1 Rammed 20 | . . . 1 4 15 Targets Rammed 24 | . . . 5 4 15 Kicked 4 | . . . 4 . . Crushed . | . . . . . . Highest Temperature 20 | . 20 3 3 . 6 Average Temperature 4 | . 6 3 2 . 4 Received Heat Transfer 768 | . 144 18 138 27 441 Siege Activations . | . . . . . . Robots Corrupted . | . . . . . . Combat Hostiles . | . . . . . . Parts Fried . | . . . . . . Impact Corruptions . | . . . . . . Robots Melted . | . . . . . . Combat Hostiles . | . . . . . . Parts Melted . | . . . . . . Heat Transferred . | . . . . . . Parts Sabotaged . | . . . . . . Parts Stolen . | . . . . . . Parts Stripped . | . . . . . . Power Chain Reactions . | . . . . . . Alert | -11 -10 -9 -9 -8 -7 ------- Run | Yrd Mat Mat Sto Mat Fac Peak Influence 565 | . 246 349 565 309 359 Initial 234 | . . 40 146 234 135 Average 189 | . 125 143 302 250 194 Maximum Alert Level 2 | . 1 1 2 1 1 Low Security (%) 61 | 100 73 79 34 . 70 Level 1 31 | . 26 20 36 100 29 Level 2 7 | . . . 28 . . Level 3 . | . . . . . . Level 4 . | . . . . . . Level 5 . | . . . . . . High Security . | . . . . . . Max Security . | . . . . . . Squads Dispatched 6 | . . . 2 . 4 Investigation 1 | . . . 1 . . Extermination 1 | . . . . . 1 Reinforcement 3 | . . . 1 . 2 Assault . | . . . . . . Garrison 1 | . . . . . 1 Intercept . | . . . . . . Searches Triggered . | . . . . . . Construction Impeded 1 | . . . . . 1 Haulers Reinforced . | . . . . . . Active Scanning Responses . | . . . . . . Cargo Convoy Interrupts . | . . . . . . Stealth | -11 -10 -9 -9 -8 -7 --------- Run | Yrd Mat Mat Sto Mat Fac Distress Signals 10 | . 3 1 3 2 1 Communications Jammed . | . . . . . . Distress Signals . | . . . . . . Times Spotted 81 | . 12 14 19 16 20 Peak Tracking Total 17 | . 5 7 5 17 10 Tactical Retreats 8 | . 2 1 . 1 4 Traps | -11 -10 -9 -9 -8 -7 ------- Run | Yrd Mat Mat Sto Mat Fac Traps Triggered 2 | . . . 2 . . Indirectly . | . . . . . . Trap Hack Attempts . | . . . . . . Triggered . | . . . . . . Disarmed . | . . . . . . Reprogrammed . | . . . . . . Reused . | . . . . . . Traps Extracted . | . . . . . . Installed . | . . . . . . Triggered . | . . . . . . Machines | -11 -10 -9 -9 -8 -7 ---------- Run | Yrd Mat Mat Sto Mat Fac Machines Disabled 3 | . . . 2 . 1 Max in Single Turn 2 | . . . 2 . 1 Machines Repaired . | . . . . . . Machines Dismantled . | . . . . . . Machines Sabotaged . | . . . . . . Overloaded Fab Kills . | . . . . . . Hacking | -11 -10 -9 -9 -8 -7 --------- Run | Yrd Mat Mat Sto Mat Fac Machines Accessed 4 | . 1 . 3 . . Terminals 4 | . 1 . 3 . . Fabricators . | . . . . . . Repair Stations . | . . . . . . Recycling Units . | . . . . . . Scanalyzers . | . . . . . . Garrison Access . | . . . . . . Total Hacks 7 | . 1 . 6 . . Successful 1 | . 1 . . . . Failed 6 | . . . 6 . . Catastrophic 3 | . . . 3 . . Database Lockouts . | . . . . . . Manual 3 | . 1 . 2 . . Terminals 7 | . 1 . 6 . . Fabricators . | . . . . . . Repair Stations . | . . . . . . Recycling Units . | . . . . . . Scanalyzers . | . . . . . . Garrison Access . | . . . . . . Terminal Hacks 1 | . 1 . . . . Unreport Threat 1 | . 1 . . . . Fabricator Hacks . | . . . . . . Repair Station Hacks . | . . . . . . Recycling Unit Hacks . | . . . . . . Scanalyzer . | . . . . . . Garrison Access Hacks . | . . . . . . Unauthorized Hacks . | . . . . . . Terminals . | . . . . . . Fabricators . | . . . . . . Repair Stations . | . . . . . . Recycling Units . | . . . . . . Scanalyzers . | . . . . . . Garrison Access . | . . . . . . Data Cores Recovered . | . . . . . . Used . | . . . . . . Hacking Detections 3 | . . . 3 . . Full Trace Events 3 | . . . 3 . . Feedback Events . | . . . . . . Feedback Blocked . | . . . . . . Robot Schematics Acquired . | . . . . . . Robots Built . | . . . . . . Authchips . | . . . . . . Time . | . . . . . . Total Robot Build Rating . | . . . . . . Part Schematics Acquired . | . . . . . . Parts Built . | . . . . . . Authchips . | . . . . . . Time . | . . . . . . Total Part Build Rating . | . . . . . . Parts Repaired . | . . . . . . Time . | . . . . . . Parts Recycled . | . . . . . . Recycled Matter . | . . . . . . Retrieved Matter . | . . . . . . Retrieved Components . | . . . . . . Parts Scanalyzed . | . . . . . . Part Schematics Acquired . | . . . . . . Parts Damaged . | . . . . . . Bothacking | -11 -10 -9 -9 -8 -7 ------------ Run | Yrd Mat Mat Sto Mat Fac Used RIF Installer . | . . . . . . Robots Hacked . | . . . . . . Non-combat . | . . . . . . Combat . | . . . . . . Robot Hacks Applied . | . . . . . . Relay Couplers Released . | . . . . . . Fabnet Peak Effective % . | . . . . . . Robots Rewired . | . . . . . . Allies Hacked . | . . . . . . Hacks Repelled . | . . . . . . Allies | -11 -10 -9 -9 -8 -7 -------- Run | Yrd Mat Mat Sto Mat Fac Total Allies . | . . . . . . Largest Group . | . . . . . . Highest-Rated Group . | . . . . . . Highest-Rated Ally . | . . . . . . Total Orders . | . . . . . . Ally Attacks . | . . . . . . Total Damage . | . . . . . . Kills . | . . . . . . Allies Corrupted . | . . . . . . Allies Melted . | . . . . . . Intel | -11 -10 -9 -9 -8 -7 ------- Run | Yrd Mat Mat Sto Mat Fac Robot Analysis Total . | . . . . . . Derelict Logs Recovered . | . . . . . . Drone Launches . | . . . . . . Drone Recoveries . | . . . . . . Exploration | -11 -10 -9 -9 -8 -7 ------------- Run | Yrd Mat Mat Sto Mat Fac Turns Passed 1598 | 86 344 315 399 87 367 Spaces Moved 1243 | 34 210 204 228 206 361 Core 118 | 34 . . . 14 70 Treads . | . . . . . . Legs 609 | . 210 204 195 . . Wheels . | . . . . . . Hover 2 | . . . . . 2 Flight 514 | . . . 33 192 289 Fastest Speed 34 | 50 120 120 34 34 34 Average Speed 90 | 226 120 120 111 38 58 Slowest Speed 520 | 250 120 120 520 100 200 Overloaded Moves . | . . . . . . Propulsion Burnouts . | . . . . . . Robots Hopped 25 | . . . 2 11 12 Cave-ins Triggered . | . . . . . . Exploration Rate (%) 26 | 4 40 34 43 26 11 Regions Visited 5 Branch Regions 1 Pre-discovered Areas . | . . . . . . Known Exits Taken . | . . . . . . Unknown Exits Taken 5 | 1 1 1 1 1 . Scrap Searched . | . . . . . . Spaces Dug . | . . . . . . Terrain Destroyed 30 | . . 11 16 . 3 Melee . | . . . . . . Projectile . | . . . . . . AOE 30 | . . 11 16 . 3 Terrain Rammed . | . . . . . . Walls Destroyed . | . . . . . . Machines Disabled . | . . . . . . Actions | -11 -10 -9 -9 -8 -7 --------- Run | Yrd Mat Mat Sto Mat Fac Total 1513 | 42 258 247 311 203 452 Wait 78 | 1 12 2 36 . 27 Move 1195 | 33 209 203 223 186 341 Hop 18 | . . . 2 8 8 Pick Up 18 | 3 4 5 2 2 2 Fast Attach 20 | 4 1 2 4 . 9 Attach 10 | . 2 2 . 1 5 Detach 2 | . . . . . 2 Swap 13 | 1 5 7 . . . Drop 32 | . 3 10 9 2 8 Fire 89 | . 22 16 30 . 21 Melee 14 | . . . . . 14 Ram 20 | . . . 1 4 15 Kick 4 | . . . 4 . . Crush . | . . . . . . Escape Stasis . | . . . . . . Rewire . | . . . . . . Trap . | . . . . . . Miscellaneous . | . . . . . . Route ------- -11/Scrapyard -10/Materials -9/Materials (discovered 2 exits: [*Min] / *Sto) -9/Storage -8/Materials -7/Factory History --------- Turn | Location | Event 42 | -11/Scrapyard | Discovered new exit (range 13) 87 | -11/Scrapyard | Entered Materials 367 | -10/Materials | Discovered new exit (range 16) 431 | -10/Materials | Entered another Materials area 431 | -9/Materials | Evolved 2 slots: Propulsion x2 574 | -9/Materials | Discovered new exit (range 16) 723 | -9/Materials | Build established: Mutant 723 | -9/Materials | Discovered new exit (range 5) 746 | -9/Materials | Entered Storage 1044 | -9/Storage | Discovered new exit (range 15) 1145 | -9/Storage | Entered Materials 1145 | -8/Materials | Evolved 2 slots: Utility x2 1227 | -8/Materials | Discovered new exit (range 15) 1232 | -8/Materials | Entered Factory 1232 | -7/Factory | Evolved 2 slots: Propulsion x2 1506 | -7/Factory | Core integrity fell below 50% 1507 | -7/Factory | Garrison activated, responded to threat 1576 | -7/Factory | Lost 6 parts (1p2n1u2w) 1577 | -7/Factory | Core integrity fell below 20% 1599 | -7/Factory | Destroyed by P-60 Hacker with Shock Rifle Last Messages --------------- 01562_ Acquired Kinecellerator. 01563_ K-01 Serf cleans the Assembly Bed. 01567_ K-01 Serf collects debris. 01570_ K-01 Serf cleans the Fabricator. 01570_ H-55 Commando Gauss Rifle ripped off. 01574_ K-01 Serf destroyed. 01575_ R-06 Scavenger collects Med. Matter Pod. 01578_ System corrupted: Energy discharge (-11). 01578_ Kinecellerator destroyed. 01580_ P-60 Hacker resets U-05 Engineer, system corruption cleaned. 01581_ K-01 Serf cleans the Assembly Bed. 01583_ R-06 Scavenger collects Sml. Storage Unit. 01586_ R-06 Scavenger collects Corrupted ECM Suite. 01588_ M-13 Machinist repairs Welding Torch. 01589_ K-01 Serf cleans the Assembly Bed. 01590_ K-01 Serf collects debris. 01592_ R-06 Scavenger collects Imp. Heat Sink. 01596_ H-55 Commando destroyed. 01598_ K-01 Serf collects debris. 01599_ K-01 Serf cleans the Assembly Bed. Map ----- +----------------------------------------------------+ | ????????????????????????# "" "" #??????????# | | ????????????????????????# "" "" #????????#### | | ????????????????????????# #????????#/// | | ????????????????????????# ! #????????#/ / | | ????????????????????????# ! "" #????????#//! | | ????????????????????????# S"" #????????# | | ????????????????????????# "" #????????# | | ????????????????????????####+#########????????# | | ???????????????????????????# #????????????????# | | ???????????????????????????# #????????????????# | | ???????????????????????????#"#????????????????# | | ?????????????????????#?????#%#????????????????# | | ?????????????????????# ????#"#????????????????# | | ?????????????????????# ##### #????????????????# | | ?????????????????????# ^ ###??????????????#### | | ?????????????????????# u""#?????????????????? | | ?????????????????????# u^ t""#?????????????????? | | ?????????????????????# r ""#?????????????????? | | ????????????????????## r""" T#?????????????????? | | ????????????????????# k""" ""#?????????????????? | | ????????????????????#T F" ""#?????????????????? | | ????????????????????## ! "" ""#?????????????????? | | ?????????????????????# k #########???????????? | | ?????????????????????# !! #???????? | | ?????????????????????####u##+#########???????????? | | ????????????????????????#@# #???????????? | | ????????????????????????# # " " """ #???????????? | | ????????????????????????#p# """"""" #???????????? | | ????????????????????????#m# """"""" #???????????? | | ????????????????????????# # """"""" #???????????? | | ????????????????????????# # #???????????? | | ???????????????????######u############???????????? | | ???????????????????# g #????????????????? | | ???????????????????# = #????????????????? | | ???????????????????# +????????????????? | | ???????????????????# #????????????????? | | ???????????????????# #????????????????? | | ???????????????????# """ """" #????????????????? | | ???????????????????# """ """" #????????????????? | | ???????????????????# """ k"""" #????????????????? | | ???????????????????# """" +????????????????? | | ???????????????????# ? ! ""???#????????????????? | | ???????????????????#?? "?????????????????????? | | ?????????????????????? ?????????????????????? | | ??????????????????????######?????????????????????? | | ?????????????????????????????????????????????????? | | ?????????????????????????????????????????????????? | | ?????????????????????????????????????????????????? | | ?????????????????????????????????????????????????? | | ?????????????????????????????????????????????????? | +----------------------------------------------------+ Best States ------------- Heat Dissipation 42 Energy Generation 14 Energy Capacity 250 Matter Stores 300 Matter Capacity 300 Sight Range 16 Terrain Scan Density 10 Additional Mass Support 9 Evasion (%) 63 Kinecelleration 30 Salvage Targeting 1 Item Schematics ----------------- None Robot Schematics ------------------ None Fabricated ------------ Nothing Alien Tech Used ----------------- None Achievements -------------- None Challenges ------------ None Game ------ Seed TerrabombAutogunShockpuncher Manual? 0 Play Time 00:13:42 Cumulative 137.8 hours Start 2024.04.28 @ 19:28:57 End 2024.04.28 @ 19:42:04 Sessions 1 Manual Loads 0 Difficulty Rogue Special Mode None Game No. 277 Rogue 277 Adventurer 0 Explorer 0 Win Type - Total 0 Types 0/0/0/0/0/0/0/0/0 Lore% 36 Gallery% 56 Achievement% 38 Wizard Run 0 Options --------- Layout 0 ASCII 0 Keyboard 1 Movement Numpad Keybinds 0 Fullscreen 2 Font 18/X11 Map View 76x50 Zoom Use 0% Tactical HUD 1 Map Filters NONE Filters NONE Steam 1 RUN: 39692ae0-d98c-4931-9983-e66ed1f0ae43